[Event "*** Titled Tuesday 3|2 Blitz"]
[Site "Chess.com"]
[Date "2015.12.01"]
[Round "8"]
[White "KNVB"]
[Black "jefferyx"]
[Result "1/2-1/2"]
[WhiteElo "2363"]
[BlackElo "2556"]
[TimeControl "180+2"]
[EndTime "12:43:44 PST"]
[Termination "Game drawn by repetition"]

1. d4 {[%clk 0:03:01.9]} 1... b5 {[%clk 0:02:58.6]} 2. e4 {[%clk 0:02:38.8]}
2... a6 {[%clk 0:02:59.4]} 3. Nf3 {[%clk 0:02:35.9]} 3... Bb7 {[%clk 0:03:00.6]}
4. Bd3 {[%clk 0:02:37]} 4... e6 {[%clk 0:03:01.7]} 5. O-O {[%clk 0:02:37.9]}
5... Nf6 {[%clk 0:03:03.1]} 6. Re1 {[%clk 0:02:37.4]} 6... d5 {[%clk 0:03:04]}
7. e5 {[%clk 0:02:30.4]} 7... Nfd7 {[%clk 0:03:05]} 8. Bg5 {[%clk 0:02:31.3]}
8... Be7 {[%clk 0:03:02.5]} 9. Bxe7 {[%clk 0:02:25]} 9... Qxe7 {[%clk
0:03:04.4]} 10. Nbd2 {[%clk 0:02:23.6]} 10... c5 {[%clk 0:03:05.3]} 11. dxc5
{[%clk 0:02:18.5]} 11... Nxc5 {[%clk 0:03:05.4]} 12. Nb3 {[%clk 0:02:19.5]}
12... Ne4 {[%clk 0:03:05.1]} 13. Nfd2 {[%clk 0:02:14.8]} 13... Nxd2 {[%clk
0:02:17.5]} 14. Qxd2 {[%clk 0:02:15.4]} 14... Nc6 {[%clk 0:02:19.4]} 15. Qe3
{[%clk 0:01:40]} 15... O-O {[%clk 0:02:09.7]} 16. Nd4 {[%clk 0:01:28.1]} 16...
Qb4 {[%clk 0:02:09.6]} 17. Nxc6 {[%clk 0:01:13.2]} 17... Bxc6 {[%clk 0:02:11.5]}
18. a3 {[%clk 0:01:11.8]} 18... Qh4 {[%clk 0:01:55.6]} 19. Qg3 {[%clk
0:00:56.6]} 19... Qh6 {[%clk 0:01:36.6]} 20. Re3 {[%clk 0:00:51.9]} 20... d4
{[%clk 0:01:36.4]} 21. Re2 {[%clk 0:00:50.6]} 21... Rfd8 {[%clk 0:01:32.9]} 22.
Rae1 {[%clk 0:00:50]} 22... Rac8 {[%clk 0:01:33.2]} 23. h4 {[%clk 0:00:49.7]}
23... Bd5 {[%clk 0:01:33.7]} 24. Rd1 {[%clk 0:00:31.8]} 24... Bc4 {[%clk
0:01:30.5]} 25. Kh2 {[%clk 0:00:16.1]} 25... Qh5 {[%clk 0:01:29.6]} 26. f3
{[%clk 0:00:14.7]} 26... Rd5 {[%clk 0:01:25.5]} 27. Rdd2 {[%clk 0:00:12.2]}
27... h6 {[%clk 0:01:20.5]} 28. Re4 {[%clk 0:00:12.8]} 28... Bxd3 {[%clk
0:01:18.6]} 29. cxd3 {[%clk 0:00:14.7]} 29... Rc1 {[%clk 0:01:18.5]} 30. Rde2
{[%clk 0:00:12.4]} 30... Rd1 {[%clk 0:01:18.9]} 31. Rc2 {[%clk 0:00:10.1]} 31...
Rxd3 {[%clk 0:01:14.8]} 32. Rc8+ {[%clk 0:00:10.9]} 32... Kh7 {[%clk 0:01:16.5]}
33. Rc7 {[%clk 0:00:09.1]} 33... Re3 {[%clk 0:00:52.3]} 34. Rf4 {[%clk 0:00:08]}
34... Kg8 {[%clk 0:00:28.9]} 35. Rc8+ {[%clk 0:00:09.2]} 35... Kh7 {[%clk
0:00:30.4]} 36. Rc7 {[%clk 0:00:10.9]} 36... Kg8 {[%clk 0:00:27.1]} 37. Rc8+
{[%clk 0:00:12.1]} 37... Kh7 {[%clk 0:00:28.6]} 38. Rc7 {[%clk 0:00:13.7]} 38...
Kg8 {[%clk 0:00:25.6]} 39. Rc8+ {[%clk 0:00:10]} 39... Kh7 {[%clk 0:00:23.2]}
1/2-1/2

[Event "*** Titled Tuesday 3|2 Blitz"]
[Site "Chess.com"]
[Date "2015.12.01"]
[Round "8"]
[White "MateusViageiro"]
[Black "Haridaskesavan"]
[Result "0-1"]
[WhiteElo "2250"]
[BlackElo "2089"]
[TimeControl "180+2"]
[EndTime "12:44:19 PST"]
[Termination "Haridaskesavan won by resignation"]

1. e4 {[%clk 0:02:41.4]} 1... e5 {[%clk 0:02:59.1]} 2. Nf3 {[%clk 0:02:41.1]}
2... Nc6 {[%clk 0:03:00.2]} 3. Bb5 {[%clk 0:02:40]} 3... a6 {[%clk 0:03:00.4]}
4. Ba4 {[%clk 0:02:40.8]} 4... d6 {[%clk 0:03:01.5]} 5. O-O {[%clk 0:02:39.5]}
5... Ne7 {[%clk 0:03:02.4]} 6. c3 {[%clk 0:02:40.5]} 6... g6 {[%clk 0:03:03.4]}
7. d4 {[%clk 0:02:41.3]} 7... Bd7 {[%clk 0:03:03.9]} 8. Bg5 {[%clk 0:02:39.1]}
8... Bg7 {[%clk 0:03:04.8]} 9. d5 {[%clk 0:02:34.9]} 9... Nb8 {[%clk 0:03:05]}
10. Nbd2 {[%clk 0:02:32.9]} 10... h6 {[%clk 0:03:03.9]} 11. Be3 {[%clk
0:02:32.4]} 11... O-O {[%clk 0:03:03.9]} 12. c4 {[%clk 0:02:25.9]} 12... f5
{[%clk 0:03:04.6]} 13. exf5 {[%clk 0:02:20.9]} 13... gxf5 {[%clk 0:03:05.2]} 14.
Bxd7 {[%clk 0:01:57]} 14... Nxd7 {[%clk 0:03:06.1]} 15. Nb3 {[%clk 0:01:55.5]}
15... f4 {[%clk 0:03:07]} 16. Bd2 {[%clk 0:01:54.6]} 16... Nf5 {[%clk
0:02:56.4]} 17. Bc3 {[%clk 0:01:53.5]} 17... Kh8 {[%clk 0:02:55.7]} 18. Re1
{[%clk 0:01:51.2]} 18... Qe8 {[%clk 0:02:55.5]} 19. Nfd4 {[%clk 0:01:46.1]}
19... Qg6 {[%clk 0:02:41]} 20. Nxf5 {[%clk 0:01:12]} 20... Qxf5 {[%clk
0:02:37.6]} 21. f3 {[%clk 0:01:10.9]} 21... Rg8 {[%clk 0:02:35.8]} 22. Qe2
{[%clk 0:01:05.6]} 22... Bf6 {[%clk 0:02:35.9]} 23. Nd2 {[%clk 0:00:56.2]} 23...
Rg7 {[%clk 0:02:29]} 24. Ne4 {[%clk 0:00:54.4]} 24... Rag8 {[%clk 0:02:29]} 25.
g4 {[%clk 0:00:18.3]} 25... fxg3 {[%clk 0:02:28.8]} 26. Nxg3 {[%clk 0:00:17.5]}
26... Bh4 {[%clk 0:02:26.3]} 27. Qe4 {[%clk 0:00:13.1]} 27... Qxe4 {[%clk
0:02:24]} 28. Rxe4 {[%clk 0:00:12.9]} 28... Bxg3 {[%clk 0:02:25.2]} 29. hxg3
{[%clk 0:00:12.7]} 29... Rxg3+ {[%clk 0:02:26.2]} 30. Kf2 {[%clk 0:00:13.8]}
30... Nf6 {[%clk 0:02:21.9]} 31. Rh4 {[%clk 0:00:11.4]} 31... Kh7 {[%clk
0:02:15.1]} 32. Rah1 {[%clk 0:00:11.1]} 32... Rg2+ {[%clk 0:02:14.9]} 33. Ke3
{[%clk 0:00:10.9]} 33... R8g6 {[%clk 0:02:15.5]} 34. R1h2 {[%clk 0:00:10.9]}
34... Rxh2 {[%clk 0:02:08.3]} 35. Rxh2 {[%clk 0:00:11.9]} 35... h5 {[%clk
0:02:06.8]} 36. Ba5 {[%clk 0:00:12.2]} 36... b6 {[%clk 0:02:06.7]} 37. Bc3
{[%clk 0:00:13]} 37... Kh6 {[%clk 0:02:07.1]} 38. Bd2 {[%clk 0:00:13.6]} 38...
Kg7 {[%clk 0:01:55.9]} 39. a4 {[%clk 0:00:14]} 39... Rg1 {[%clk 0:01:52.5]} 40.
Bc3 {[%clk 0:00:12.3]} 40... Kg6 {[%clk 0:01:51.6]} 41. Kf2 {[%clk 0:00:12.8]}
41... Ra1 {[%clk 0:01:50.1]} 42. Rg2+ {[%clk 0:00:11]} 42... Kf7 {[%clk
0:01:47.6]} 43. a5 {[%clk 0:00:11.5]} 43... bxa5 {[%clk 0:01:45.4]} 44. Rg5
{[%clk 0:00:12.3]} 44... a4 {[%clk 0:01:44.7]} 45. Rf5 {[%clk 0:00:12.5]} 45...
Kg6 {[%clk 0:01:43.1]} 46. Rxf6+ {[%clk 0:00:12.7]} 46... Kxf6 {[%clk
0:01:43.9]} 47. f4 {[%clk 0:00:14]} 47... Kf5 {[%clk 0:01:41.5]} 48. fxe5 {[%clk
0:00:15]} 48... dxe5 {[%clk 0:01:42.5]} 49. c5 {[%clk 0:00:16.2]} 49... Rd1
{[%clk 0:01:42.9]} 50. d6 {[%clk 0:00:16.1]} 50... cxd6 {[%clk 0:01:43]} 51. c6
{[%clk 0:00:16.5]} 51... Ke6 {[%clk 0:01:36.4]} 52. c7 {[%clk 0:00:16.8]} 52...
Kd7 {[%clk 0:01:37.4]} 53. Ba5 {[%clk 0:00:17.8]} 53... Rc1 {[%clk 0:01:36.9]}
54. Ke3 {[%clk 0:00:17.1]} 54... d5 {[%clk 0:01:35.3]} 55. Kd2 {[%clk
0:00:17.4]} 55... Rxc7 {[%clk 0:01:35.2]} 56. Bb4 {[%clk 0:00:15.5]} 56... h4
{[%clk 0:01:34.8]} 0-1

[Event "*** Titled Tuesday 3|2 Blitz"]
[Site "Chess.com"]
[Date "2015.12.01"]
[Round "8"]
[White "Konavets"]
[Black "Iball95"]
[Result "1/2-1/2"]
[WhiteElo "2521"]
[BlackElo "2427"]
[TimeControl "180+2"]
[EndTime "12:44:21 PST"]
[Termination "Game drawn - insufficient material"]

1. b4 {[%clk 0:03:01.9]} 1... e5 {[%clk 0:02:53.7]} 2. a3 {[%clk 0:03:02.9]}
2... d5 {[%clk 0:02:49.1]} 3. Bb2 {[%clk 0:03:04.3]} 3... Bd6 {[%clk 0:02:49.8]}
4. f3 {[%clk 0:03:06.2]} 4... Nf6 {[%clk 0:02:47.8]} 5. e3 {[%clk 0:03:07.4]}
5... O-O {[%clk 0:02:48]} 6. d4 {[%clk 0:03:08.6]} 6... exd4 {[%clk 0:02:44.8]}
7. Qxd4 {[%clk 0:03:08.9]} 7... Nc6 {[%clk 0:02:44.6]} 8. Qh4 {[%clk 0:03:10]}
8... Re8 {[%clk 0:02:39.4]} 9. Ne2 {[%clk 0:03:09.8]} 9... Rxe3 {[%clk
0:02:33.5]} 10. Nd2 {[%clk 0:03:09.6]} 10... Bf5 {[%clk 0:02:25.5]} 11. O-O-O
{[%clk 0:03:08.7]} 11... Bg6 {[%clk 0:02:17.7]} 12. Nb3 {[%clk 0:02:55.4]} 12...
Be5 {[%clk 0:02:00.9]} 13. Bxe5 {[%clk 0:02:41]} 13... Rxe5 {[%clk 0:02:02.8]}
14. Nf4 {[%clk 0:02:42]} 14... Qe7 {[%clk 0:01:52.4]} 15. Bb5 {[%clk 0:02:36.7]}
15... a5 {[%clk 0:01:49.5]} 16. Bxc6 {[%clk 0:02:28.9]} 16... bxc6 {[%clk
0:01:51.4]} 17. Rhe1 {[%clk 0:02:29.7]} 17... axb4 {[%clk 0:01:46.6]} 18. Rxe5
{[%clk 0:02:30.2]} 18... Qxe5 {[%clk 0:01:44.9]} 19. Re1 {[%clk 0:02:24.1]}
19... Qc3 {[%clk 0:00:49.4]} 20. Nxg6 {[%clk 0:02:24.1]} 20... bxa3 {[%clk
0:00:50.2]} 21. Ne7+ {[%clk 0:01:29.2]} 21... Kf8 {[%clk 0:00:49.2]} 22. Nxc6
{[%clk 0:01:29.9]} 22... a2 {[%clk 0:00:44.7]} 23. Qb4+ {[%clk 0:01:29.2]} 23...
Qxb4 {[%clk 0:00:43.3]} 24. Nxb4 {[%clk 0:01:31.1]} 24... a1=Q+ {[%clk
0:00:44.5]} 25. Nxa1 {[%clk 0:01:32.4]} 25... Rxa1+ {[%clk 0:00:45.7]} 26. Kd2
{[%clk 0:01:34.3]} 26... Rxe1 {[%clk 0:00:47.1]} 27. Kxe1 {[%clk 0:01:36.2]}
27... Ke7 {[%clk 0:00:48.5]} 28. Kd2 {[%clk 0:01:37.1]} 28... Kd6 {[%clk
0:00:49.5]} 29. Nd3 {[%clk 0:01:38.2]} 29... Nd7 {[%clk 0:00:50]} 30. f4 {[%clk
0:01:34.7]} 30... Nc5 {[%clk 0:00:49.8]} 31. Ne1 {[%clk 0:01:35.7]} 31... Ne4+
{[%clk 0:00:48.2]} 32. Ke3 {[%clk 0:01:36.2]} 32... Nf6 {[%clk 0:00:48.5]} 33.
h3 {[%clk 0:01:36.1]} 33... Nd7 {[%clk 0:00:47.2]} 34. g4 {[%clk 0:01:36.7]}
34... Kc5 {[%clk 0:00:47.3]} 35. Nf3 {[%clk 0:01:35.3]} 35... h6 {[%clk
0:00:44]} 36. Kd3 {[%clk 0:01:33.6]} 36... Kd6 {[%clk 0:00:41.8]} 37. Nd4 {[%clk
0:01:34]} 37... g6 {[%clk 0:00:41]} 38. Nb5+ {[%clk 0:01:31.8]} 38... Kc6 {[%clk
0:00:41.8]} 39. Nd4+ {[%clk 0:01:32.5]} 39... Kc5 {[%clk 0:00:43]} 40. Nb3+
{[%clk 0:01:33.5]} 40... Kd6 {[%clk 0:00:43.5]} 41. Nd2 {[%clk 0:01:30.4]} 41...
Nc5+ {[%clk 0:00:43.6]} 42. Ke3 {[%clk 0:01:31.5]} 42... Ne6 {[%clk 0:00:42.5]}
43. Nf3 {[%clk 0:01:31.9]} 43... f6 {[%clk 0:00:31.9]} 44. c3 {[%clk 0:01:26.7]}
44... c5 {[%clk 0:00:32]} 45. h4 {[%clk 0:01:27.7]} 45... f5 {[%clk 0:00:28]}
46. g5 {[%clk 0:01:26.7]} 46... hxg5 {[%clk 0:00:28.1]} 47. hxg5 {[%clk
0:01:26.3]} 47... c4 {[%clk 0:00:20.2]} 48. Ne5 {[%clk 0:01:26.8]} 48... Nxg5
{[%clk 0:00:21]} 49. Nxg6 {[%clk 0:01:23.7]} 49... Ne6 {[%clk 0:00:21.7]} 50.
Nh4 {[%clk 0:01:23.4]} 50... Ng7 {[%clk 0:00:23]} 51. Kd4 {[%clk 0:01:24.4]}
51... Ke6 {[%clk 0:00:23.8]} 52. Nf3 {[%clk 0:01:24]} 52... Nh5 {[%clk
0:00:23.9]} 53. Ng5+ {[%clk 0:01:25.2]} 53... Kd6 {[%clk 0:00:24.2]} 54. Nf7+
{[%clk 0:01:26.4]} 54... Ke7 {[%clk 0:00:23.5]} 55. Nh6 {[%clk 0:01:27.1]} 55...
Nxf4 {[%clk 0:00:24.3]} 56. Nxf5+ {[%clk 0:01:19.8]} 56... Ke6 {[%clk
0:00:23.6]} 57. Ne3 {[%clk 0:01:21.1]} 57... Ne2+ {[%clk 0:00:24.2]} 58. Kc5
{[%clk 0:01:18.6]} 58... Nxc3 {[%clk 0:00:25.5]} 59. Nxd5 {[%clk 0:01:19.8]}
59... Nxd5 {[%clk 0:00:22.2]} 60. Kxc4 {[%clk 0:01:21]} 1/2-1/2

[Event "*** Titled Tuesday 3|2 Blitz"]
[Site "Chess.com"]
[Date "2015.12.01"]
[Round "8"]
[White "petrpalachev"]
[Black "ruifeng"]
[Result "0-1"]
[WhiteElo "2320"]
[BlackElo "2215"]
[TimeControl "180+2"]
[EndTime "12:44:27 PST"]
[Termination "ruifeng won on time"]

1. d4 {[%clk 0:03:01.9]} 1... d5 {[%clk 0:02:57.8]} 2. c4 {[%clk 0:03:02.7]}
2... e6 {[%clk 0:02:58.8]} 3. Nc3 {[%clk 0:03:03.4]} 3... c5 {[%clk 0:02:59.4]}
4. cxd5 {[%clk 0:03:02.7]} 4... cxd4 {[%clk 0:02:59.1]} 5. Qxd4 {[%clk
0:03:04.6]} 5... exd5 {[%clk 0:02:59.9]} 6. Qxd5 {[%clk 0:03:03.1]} 6... Nd7
{[%clk 0:03:00.9]} 7. Nf3 {[%clk 0:02:59]} 7... Ngf6 {[%clk 0:03:01.5]} 8. Qd1
{[%clk 0:02:59]} 8... Bc5 {[%clk 0:03:02.5]} 9. e3 {[%clk 0:02:57.7]} 9... O-O
{[%clk 0:03:03.1]} 10. Be2 {[%clk 0:02:58.7]} 10... b6 {[%clk 0:02:53.3]} 11. a3
{[%clk 0:02:59]} 11... Qe7 {[%clk 0:02:52.1]} 12. b4 {[%clk 0:02:58.2]} 12...
Bd6 {[%clk 0:02:53.3]} 13. Bb2 {[%clk 0:02:59.2]} 13... Bb7 {[%clk 0:02:53.9]}
14. O-O {[%clk 0:02:52.4]} 14... Rac8 {[%clk 0:02:54]} 15. Rc1 {[%clk
0:02:52.4]} 15... Ne5 {[%clk 0:02:54.1]} 16. Nxe5 {[%clk 0:02:05.8]} 16... Qxe5
{[%clk 0:02:52.8]} 17. g3 {[%clk 0:02:07]} 17... Rfd8 {[%clk 0:02:17.8]} 18. Qd4
{[%clk 0:01:51.9]} 18... Qg5 {[%clk 0:02:03.4]} 19. Qh4 {[%clk 0:01:40.9]} 19...
Qf5 {[%clk 0:01:28.1]} 20. Nb5 {[%clk 0:00:25.1]} 20... Be7 {[%clk 0:01:02]} 21.
Rxc8 {[%clk 0:00:23.3]} 21... Rxc8 {[%clk 0:01:01.7]} 22. Nd4 {[%clk 0:00:23.3]}
22... Qe5 {[%clk 0:00:55.5]} 23. Qf4 {[%clk 0:00:22.2]} 23... Qxf4 {[%clk
0:00:43]} 24. gxf4 {[%clk 0:00:21.6]} 24... a5 {[%clk 0:00:42.6]} 25. bxa5
{[%clk 0:00:20.7]} 25... bxa5 {[%clk 0:00:43.6]} 26. Rc1 {[%clk 0:00:22.3]}
26... Rxc1+ {[%clk 0:00:42.5]} 27. Bxc1 {[%clk 0:00:24.2]} 27... Bc5 {[%clk
0:00:42]} 28. Nb3 {[%clk 0:00:23.1]} 28... Bb6 {[%clk 0:00:41.8]} 29. Bb5 {[%clk
0:00:23.2]} 29... Bd5 {[%clk 0:00:41]} 30. Na1 {[%clk 0:00:14.5]} 30... Ne4
{[%clk 0:00:40.2]} 31. Bb2 {[%clk 0:00:12.4]} 31... f6 {[%clk 0:00:38.6]} 32.
Nc2 {[%clk 0:00:12]} 32... Nd2 {[%clk 0:00:38.8]} 33. Nd4 {[%clk 0:00:10.9]}
33... Bxd4 {[%clk 0:00:32.9]} 34. Bxd4 {[%clk 0:00:11.5]} 34... Nf3+ {[%clk
0:00:34]} 35. Kf1 {[%clk 0:00:13.1]} 35... Nxh2+ {[%clk 0:00:35]} 36. Ke2 {[%clk
0:00:10]} 36... h5 {[%clk 0:00:35]} 37. Bd3 {[%clk 0:00:06.8]} 37... Bf3+ {[%clk
0:00:34.1]} 38. Ke1 {[%clk 0:00:06.6]} 38... h4 {[%clk 0:00:34.6]} 39. Bf5
{[%clk 0:00:06.4]} 39... Bg2 {[%clk 0:00:34.5]} 40. Bb6 {[%clk 0:00:04.4]} 40...
Nf3+ {[%clk 0:00:34.2]} 41. Ke2 {[%clk 0:00:04.9]} 41... Ng1+ {[%clk 0:00:35.2]}
42. Kd3 {[%clk 0:00:03.2]} 42... h3 {[%clk 0:00:34.4]} 43. Bxh3 {[%clk
0:00:03.4]} 43... Nxh3 {[%clk 0:00:35.2]} 44. Ke2 {[%clk 0:00:04.1]} 44... a4
{[%clk 0:00:33.4]} 45. f3 {[%clk 0:00:03.6]} 45... Kf7 {[%clk 0:00:34.4]} 46.
Bc7 {[%clk 0:00:03]} 46... Ke6 {[%clk 0:00:34.9]} 47. e4 {[%clk 0:00:03.4]}
47... f5 {[%clk 0:00:35.4]} 0-1

[Event "*** Titled Tuesday 3|2 Blitz"]
[Site "Chess.com"]
[Date "2015.12.01"]
[Round "8"]
[White "AndreyOstrovskiy"]
[Black "Gabrielian_Artur"]
[Result "0-1"]
[WhiteElo "2424"]
[BlackElo "2508"]
[TimeControl "180+2"]
[EndTime "12:44:51 PST"]
[Termination "Gabrielian_Artur won by checkmate"]

1. e4 {[%clk 0:03:01.9]} 1... c5 {[%clk 0:03:00.6]} 2. Nf3 {[%clk 0:03:02.6]}
2... e6 {[%clk 0:03:01.8]} 3. d4 {[%clk 0:03:03.9]} 3... cxd4 {[%clk 0:03:03.2]}
4. Nxd4 {[%clk 0:03:05.8]} 4... Nf6 {[%clk 0:03:04.6]} 5. Nc3 {[%clk 0:03:06.5]}
5... d6 {[%clk 0:03:06.1]} 6. Be2 {[%clk 0:03:03.8]} 6... a6 {[%clk 0:03:06.8]}
7. O-O {[%clk 0:03:03.4]} 7... Nbd7 {[%clk 0:03:07]} 8. f4 {[%clk 0:03:00.6]}
8... b5 {[%clk 0:03:08.1]} 9. Bf3 {[%clk 0:02:59.7]} 9... Bb7 {[%clk 0:03:09.3]}
10. Qe1 {[%clk 0:02:53.8]} 10... Qc7 {[%clk 0:03:06.6]} 11. a3 {[%clk
0:02:48.8]} 11... Rb8 {[%clk 0:02:53.9]} 12. Kh1 {[%clk 0:02:48.7]} 12... h5
{[%clk 0:02:51.1]} 13. Be3 {[%clk 0:02:39.3]} 13... Be7 {[%clk 0:02:50]} 14. Bg1
{[%clk 0:02:30.5]} 14... Ng4 {[%clk 0:02:48.5]} 15. Qg3 {[%clk 0:02:10]} 15...
Ndf6 {[%clk 0:02:46.6]} 16. Rae1 {[%clk 0:02:00.6]} 16... g6 {[%clk 0:02:44.3]}
17. e5 {[%clk 0:01:55.9]} 17... dxe5 {[%clk 0:02:27.1]} 18. fxe5 {[%clk
0:01:57]} 18... Nd7 {[%clk 0:02:25]} 19. Bxb7 {[%clk 0:01:19.4]} 19... Rxb7
{[%clk 0:02:13.7]} 20. Nf3 {[%clk 0:01:08]} 20... Nh6 {[%clk 0:01:24.9]} 21. Ne4
{[%clk 0:01:06.7]} 21... Nf5 {[%clk 0:01:25.5]} 22. Qf4 {[%clk 0:01:06.4]} 22...
Nb6 {[%clk 0:01:14.6]} 23. c3 {[%clk 0:01:03.2]} 23... Nd5 {[%clk 0:01:15.2]}
24. Qd2 {[%clk 0:01:00.9]} 24... h4 {[%clk 0:01:14.8]} 25. Bd4 {[%clk
0:00:58.8]} 25... Rh5 {[%clk 0:01:12.9]} 26. h3 {[%clk 0:00:55.2]} 26... Rb8
{[%clk 0:01:11.9]} 27. Nh2 {[%clk 0:00:55.2]} 27... Kf8 {[%clk 0:00:49.1]} 28.
Ng4 {[%clk 0:00:55.4]} 28... Kg8 {[%clk 0:00:50.3]} 29. Kg1 {[%clk 0:00:56.5]}
29... Rd8 {[%clk 0:00:50.1]} 30. Rf3 {[%clk 0:00:56.7]} 30... Qc4 {[%clk
0:00:50.3]} 31. Qf2 {[%clk 0:00:55.6]} 31... a5 {[%clk 0:00:47.2]} 32. Nef6+
{[%clk 0:00:50.6]} 32... Nxf6 {[%clk 0:00:47.9]} 33. exf6 {[%clk 0:00:51.5]}
33... Bf8 {[%clk 0:00:46.5]} 34. Re4 {[%clk 0:00:46.2]} 34... Nxd4 {[%clk
0:00:45.8]} 35. cxd4 {[%clk 0:00:44]} 35... Rf5 {[%clk 0:00:42.7]} 36. Ne5
{[%clk 0:00:41.4]} 36... Qc1+ {[%clk 0:00:41.7]} 37. Re1 {[%clk 0:00:41.8]}
37... Rxf3 {[%clk 0:00:39.5]} 38. Nxf3 {[%clk 0:00:42.5]} 38... Qf4 {[%clk
0:00:39.5]} 39. Qe2 {[%clk 0:00:32.4]} 39... Qxf6 {[%clk 0:00:39.2]} 40. Qxb5
{[%clk 0:00:33.5]} 40... Rd5 {[%clk 0:00:39.6]} 41. Qb8 {[%clk 0:00:19.2]} 41...
Kg7 {[%clk 0:00:40.5]} 42. Rc1 {[%clk 0:00:18.5]} 42... Bd6 {[%clk 0:00:40.9]}
43. Qe8 {[%clk 0:00:18.5]} 43... Rxd4 {[%clk 0:00:28.9]} 44. Rc8 {[%clk
0:00:10.4]} 44... Rd1+ {[%clk 0:00:28.5]} 45. Kf2 {[%clk 0:00:11.8]} 45... Qxb2+
{[%clk 0:00:24.5]} 46. Ke3 {[%clk 0:00:13]} 46... Qxa3+ {[%clk 0:00:23.1]} 47.
Ke2 {[%clk 0:00:09.5]} 47... Qd3+ {[%clk 0:00:23.6]} 48. Kf2 {[%clk 0:00:10.5]}
48... Bg3# {[%clk 0:00:24.2]} 0-1

[Event "*** Titled Tuesday 3|2 Blitz"]
[Site "Chess.com"]
[Date "2015.12.01"]
[Round "8"]
[White "oggy1984"]
[Black "chessbia"]
[Result "0-1"]
[WhiteElo "2198"]
[BlackElo "2122"]
[TimeControl "180+2"]
[EndTime "12:44:53 PST"]
[Termination "chessbia won on time"]

1. e4 {[%clk 0:02:56.7]} 1... e5 {[%clk 0:02:58]} 2. f4 {[%clk 0:02:52]} 2... d5
{[%clk 0:02:55.8]} 3. exd5 {[%clk 0:02:47.4]} 3... exf4 {[%clk 0:02:56.9]} 4.
Nf3 {[%clk 0:02:43.4]} 4... Nf6 {[%clk 0:02:56.6]} 5. d4 {[%clk 0:02:40.7]} 5...
Bd6 {[%clk 0:02:49.1]} 6. c4 {[%clk 0:02:33.3]} 6... b6 {[%clk 0:02:47.4]} 7.
Bd3 {[%clk 0:02:28.2]} 7... Bg4 {[%clk 0:02:46.4]} 8. O-O {[%clk 0:02:28.1]}
8... O-O {[%clk 0:02:46.3]} 9. Nc3 {[%clk 0:02:27.7]} 9... a6 {[%clk 0:02:42.4]}
10. Qc2 {[%clk 0:02:23.6]} 10... h6 {[%clk 0:02:41]} 11. Ne5 {[%clk 0:02:19.2]}
11... Bh5 {[%clk 0:02:37.2]} 12. Bxf4 {[%clk 0:02:17.8]} 12... Nbd7 {[%clk
0:02:30.7]} 13. Nc6 {[%clk 0:02:16.7]} 13... Qe8 {[%clk 0:02:25.3]} 14. Rae1
{[%clk 0:02:15.2]} 14... Qxe1 {[%clk 0:02:11.5]} 15. Rxe1 {[%clk 0:02:03.7]}
15... Bxf4 {[%clk 0:02:12.5]} 16. h3 {[%clk 0:01:59]} 16... Rae8 {[%clk
0:02:10.6]} 17. Rxe8 {[%clk 0:01:40.3]} 17... Rxe8 {[%clk 0:02:11.2]} 18. g4
{[%clk 0:01:39.5]} 18... Be3+ {[%clk 0:02:05.2]} 19. Kg2 {[%clk 0:01:38.7]}
19... Nxg4 {[%clk 0:01:55.4]} 20. hxg4 {[%clk 0:01:37.8]} 20... Bxg4 {[%clk
0:01:56.7]} 21. Bf5 {[%clk 0:01:37.8]} 21... Nf6 {[%clk 0:01:50.6]} 22. Bxg4
{[%clk 0:01:31.8]} 22... Nxg4 {[%clk 0:01:51.6]} 23. Qe2 {[%clk 0:01:13.6]}
23... h5 {[%clk 0:01:43.7]} 24. Qf3 {[%clk 0:01:08.4]} 24... g5 {[%clk
0:01:30.3]} 25. Ne4 {[%clk 0:01:06.8]} 25... Bf4 {[%clk 0:01:25.2]} 26. Qxg4
{[%clk 0:00:31.6]} 26... hxg4 {[%clk 0:01:25.5]} 27. Nf6+ {[%clk 0:00:32]} 27...
Kf8 {[%clk 0:01:26.9]} 28. Nxe8 {[%clk 0:00:32.5]} 28... Kxe8 {[%clk 0:01:28.3]}
29. b4 {[%clk 0:00:31.2]} 29... g3 {[%clk 0:01:25.2]} 30. a4 {[%clk 0:00:27.9]}
30... f5 {[%clk 0:01:20.1]} 31. a5 {[%clk 0:00:21.2]} 31... bxa5 {[%clk
0:01:14.8]} 32. bxa5 {[%clk 0:00:21.1]} 32... g4 {[%clk 0:01:02.4]} 33. c5
{[%clk 0:00:17.3]} 33... Kf7 {[%clk 0:00:55.7]} 34. Nb8 {[%clk 0:00:12.7]} 34...
Bd2 {[%clk 0:00:56.1]} 35. Nxa6 {[%clk 0:00:12.9]} 35... Bxa5 {[%clk 0:00:57.1]}
36. Nb8 {[%clk 0:00:11.7]} 36... f4 {[%clk 0:00:55.9]} 37. Nc6 {[%clk
0:00:08.9]} 37... Bc3 {[%clk 0:00:48.1]} 38. d6 {[%clk 0:00:07.2]} 38... cxd6
{[%clk 0:00:46.8]} 39. cxd6 {[%clk 0:00:06.8]} 39... Ke6 {[%clk 0:00:47.5]} 40.
d7 {[%clk 0:00:05.8]} 40... Kxd7 {[%clk 0:00:48.5]} 41. Ne5+ {[%clk 0:00:06.6]}
41... Ke6 {[%clk 0:00:49.3]} 42. Nxg4 {[%clk 0:00:07.5]} 42... Bxd4 {[%clk
0:00:48.9]} 43. Kf3 {[%clk 0:00:08.4]} 43... Kf5 {[%clk 0:00:48.6]} 44. Nh6+
{[%clk 0:00:09.1]} 44... Kg5 {[%clk 0:00:45.3]} 45. Nf7+ {[%clk 0:00:09.8]}
45... Kh4 {[%clk 0:00:44.5]} 46. Kg2 {[%clk 0:00:06.7]} 46... Be3 {[%clk
0:00:44.5]} 47. Kf3 {[%clk 0:00:06.9]} 47... Kh3 {[%clk 0:00:44.1]} 48. Ng5+
{[%clk 0:00:07.1]} 48... Kh2 {[%clk 0:00:45.5]} 49. Ke2 {[%clk 0:00:05.3]} 49...
g2 {[%clk 0:00:44.4]} 50. Nf3+ {[%clk 0:00:03.8]} 50... Kh1 {[%clk 0:00:45.6]}
0-1